Cogmind - Beta 11 @@@ ROGUE MODE // 2022.03.24 @ 20:34:15 Player: the cat Result: Escaped! Performance ------------- Evolutions (9) 4500 Regions Visited (14) 2800 Robots Destroyed (98) 490 Value Destroyed (2246) 2246 Prototype IDs (19) 380 Alien Tech Used (0) 0 Bonus (3284) 3284 TOTAL SCORE: 13700 Bonus ------- High Alert Combat Kills 88 Follower Combat Kills 151 Aligned with FarCom 300 Win 3000 Friendly Fire -255 Cogmind --------- Core Integrity 1560/1600 Matter 190/300 Energy 136/350 System Corruption 0% Temperature Warm (114) Movement Flying (25) Location To Epsilon Eridani Parts ------- > --- POWER (2) -------- Enhanced Nuclear Core Micro Fission Core > --- PROPULSION (8) --- Improved VTOL Module Cooled Field Propulsion Drive Field Propulsion Array Q-thruster Q-thruster Impulse Thruster Array > --- UTILITY (13) ----- Advanced Coolant Injector Medium Storage Unit Structural Scanner Seismic Detector Improved Propulsion Shielding Improved Utility Shielding Improved Light Armor Plating Advanced Force Field Hacking Suite Hacking Suite Improved Hacking Suite Improved Hacking Suite Advanced System Shield > --- WEAPON (2) ------- Cooled Plasma Cannon Makeshift Axe > --- INVENTORY (10) --- Improved Quantum Reactor Q-thruster Impulse Thruster Array Improved Energy Well (400) Gravity Neutralizer Trap Scanner Advanced Terrain Scanner Improved Propulsion Shielding Neutron Missile Launcher Peak State ------------ > --- POWER ------------ Enhanced Nuclear Core Micro Fission Core > --- PROPULSION ------- Improved VTOL Module Cooled Field Propulsion Drive Field Propulsion Array Q-thruster Q-thruster Impulse Thruster Array > --- UTILITY ---------- Advanced Coolant Injector Medium Storage Unit Structural Scanner Seismic Detector Improved Propulsion Shielding Improved Utility Shielding Improved Light Armor Plating Advanced Force Field Hacking Suite Hacking Suite Improved Hacking Suite Improved Hacking Suite Advanced System Shield > --- WEAPON ----------- Cooled Plasma Cannon Makeshift Axe > --- INVENTORY -------- Improved Quantum Reactor Q-thruster Impulse Thruster Array Improved Energy Well Gravity Neutralizer Trap Scanner Advanced Terrain Scanner Neutron Missile Launcher [Rating: 134] Favorites ----------- Power Light Ion Engine Engine Light Ion Engine Power Core Light Nuclear Core Propulsion Light Treads Treads Light Treads Wheel Wheel Flight Unit Xenon Bombardment Thruster Utility Hacking Suite Device Trap Scanner Storage High-capacity Storage Unit Processor Improved Targeting Computer Hackware Hacking Suite Protection Light Armor Plating Weapon Heavy Assault Rifle Energy Gun Medium Laser Energy Cannon Cooled Plasma Cannon Ballistic Gun Heavy Assault Rifle Ballistic Cannon Advanced Assault Cannon Launcher Grenade Launcher Slashing Weapon Makeshift Axe Build | -11 -10 -10 -9 -9 -9 -8 -8 -7 -6 -5 -4 -3 -2 -1 ------- Run | Scr Mat Min Mat Min Exi Min Mat Fac Fac Fac Fac Res Res Acc Slots Evolved 18 | . . . 2 . . . 2 2 2 2 2 2 2 2 Power 1 | . . . . . . . . . . . . 1 . . Propulsion 6 | . . . 1 . . . 1 . 1 1 1 1 . . Utility 11 | . . . 1 . . . 1 2 1 1 1 . 2 2 Weapon . | . . . . . . . . . . . . . . . Parts Attached 168 | 7 5 2 18 9 6 1 53 12 10 5 14 15 7 4 Power 16 | 1 . 1 2 . 1 . 6 . 2 . 1 2 . . Engine 8 | 1 . 1 2 . 1 . 3 . . . . . . . Core 8 | . . . . . . . 3 . 2 . 1 2 . . Reactor . | . . . . . . . . . . . . . . . Propulsion 38 | 2 1 1 6 3 1 1 14 2 1 . 2 3 1 . Treads 20 | 1 . 1 5 3 1 1 8 . . . . . . . Leg . | . . . . . . . . . . . . . . . Wheel 3 | 1 1 . 1 . . . . . . . . . . . Hover . | . . . . . . . . . . . . . . . Flight 15 | . . . . . . . 6 2 1 . 2 3 1 . Utility 63 | 1 3 . 6 3 . . 13 10 2 3 6 7 5 4 Device 24 | . . . . 1 . . 5 5 . 2 4 5 . 2 Storage 7 | 1 2 . 2 . . . 1 . . . 1 . . . Processor 4 | . 1 . 1 . . . . 1 1 . . . . . Hackware 11 | . . . . . . . . 4 . 1 1 2 3 . Protection 17 | . . . 3 2 . . 7 . 1 . . . 2 2 Artifact . | . . . . . . . . . . . . . . . Weapon 51 | 3 1 . 4 3 4 . 20 . 5 2 5 3 1 . Energy Gun 4 | 1 1 . . . . . 2 . . . . . . . Energy Cannon 12 | . . . . . 2 . . . 2 2 3 2 1 . Ballistic Gun 24 | 2 . . 4 3 2 . 10 . . . 2 1 . . Ballistic Cannon 3 | . . . . . . . . . 3 . . . . . Launcher 4 | . . . . . . . 4 . . . . . . . Special Weapon . | . . . . . . . . . . . . . . . Impact Weapon . | . . . . . . . . . . . . . . . Slashing Weapon 4 | . . . . . . . 4 . . . . . . . Piercing Weapon . | . . . . . . . . . . . . . . . Special Melee Weapon . | . . . . . . . . . . . . . . . Unidentified Prototypes 13 | . . . . 1 2 . 3 . 3 . 2 2 . . Corrupted Parts 1 | . . . . . . . 1 . . . . . . . System Corruption 2 | . . . . . . . 2 . . . . . . . Parts Lost 32 | . . 3 10 4 . 1 11 . 3 . . . . . Power 4 | . . 1 2 . . . 1 . . . . . . . Propulsion 12 | . . 1 4 2 . . 4 . 1 . . . . . Utility 6 | . . . 1 1 . . 2 . 2 . . . . . Weapon 10 | . . 1 3 1 . 1 4 . . . . . . . Highest Loss Streak 6 | . . 3 4 3 . 1 6 . 2 . . . . . To Critical Strikes . | . . . . . . . . . . . . . . . Average Slot Usage (%) 93 | . 99 97 95 99 99 90 93 90 91 82 81 93 91 92 Engine 6 | . 14 13 10 11 11 11 5 . . . . . . . Core 3 | . . . . . . . 3 7 6 5 5 8 8 8 Treads 17 | . 14 14 24 32 33 33 30 . . . . . . . Wheel 2 | . 14 14 7 . . . . . . . . . . . Flight 9 | . . . . . . . . 30 31 23 23 31 26 24 Device 8 | . . . . . . . 15 10 11 17 15 10 13 18 Storage 8 | . 14 14 11 11 11 11 9 7 6 5 5 4 4 4 Processor 5 | . 13 14 11 11 11 6 . 4 5 . . . . . Hackware 7 | . . . . . . . . 20 20 23 25 26 21 20 Protection 6 | . . . 8 10 11 11 10 . . . . . 8 9 Energy Gun 2 | . 14 14 4 . . . 2 . . . . . . . Ballistic Gun 10 | . 14 12 17 21 21 17 13 . . . . 2 . . Slashing Weapon 1 | . . . . . . . . 7 6 5 5 4 4 4 Naked Turns . | . . . . . . . . . . . . . . . Heaviest Build 71 | 14 29 29 60 52 68 56 71 21 22 22 30 38 43 59 Greatest Support 82 | 20 20 10 60 60 60 60 82 23 23 23 38 57 59 59 Greatest Overweight (x) 9 | 3 4 2 9 . 1 . 2 . 1 . 1 . . . Average Overweight (x) . | . 1 2 1 . . . . . . . . . . . Largest Inventory Capacity 20 | 8 15 15 20 20 20 20 20 10 10 10 10 10 10 10 Average Capacity 15 | 7 10 15 18 20 20 20 19 10 10 10 10 10 10 10 Most Carried 20 | 4 13 15 19 20 20 20 20 10 10 10 10 10 10 10 Average Carried 14 | 2 6 14 14 19 19 19 19 8 9 8 9 9 9 7 Final Capacity 20 | 8 15 15 20 20 20 20 10 10 10 10 10 10 10 10 Final Carried 20 | 4 13 13 18 20 20 19 9 10 10 10 9 10 10 10 Class Distribution -------------------- 35% | Scavenger-Mutant 28% | Mutant 24% | Hacker-Scout 5% | Wizard-Sprinter 3% | Hacker-Sprinter Dominant Class ---------------- Mutant | -10/Materials Mutant | -10/Mines Scavenger-Mutant | -9/Materials Scavenger-Mutant | -9/Mines Scavenger-Mutant | -9/Exiles Scavenger-Mutant | -8/Mines Mutant | -8/Materials Hacker-Sprinter | -7/Factory Hacker-Scout | -6/Factory Hacker-Scout | -5/Factory Hacker-Scout | -4/Factory Wizard-Sprinter | -3/Research Hacker-Scout | -2/Research Hacker-Scout | -1/Access Resources | -11 -10 -10 -9 -9 -9 -8 -8 -7 -6 -5 -4 -3 -2 -1 ----------- Run | Scr Mat Min Mat Min Exi Min Mat Fac Fac Fac Fac Res Res Acc Matter Collected 3156 | 214 216 169 447 322 . 123 1050 100 147 38 138 162 30 . Remotely 110 | . . . . . . . 110 . . . . . . . Salvage Created 3578 | . 373 43 999 170 . . 1547 . 128 . 137 151 30 . Parts 201 | . 23 4 63 13 . . 82 . 8 . 4 . 4 . Haulers Intercepted 8 | . 1 . . . . . 5 . 1 . 1 . . . Recyclers Shooed 7 | . . . 5 . . . 2 . . . . . . . Parts Field Recycled . | . . . . . . . . . . . . . . . Retrieved Matter . | . . . . . . . . . . . . . . . Parts Self-Destructed . | . . . . . . . . . . . . . . . Prevented . | . . . . . . . . . . . . . . . Kills | -11 -10 -10 -9 -9 -9 -8 -8 -7 -6 -5 -4 -3 -2 -1 ------- Run | Scr Mat Min Mat Min Exi Min Mat Fac Fac Fac Fac Res Res Acc Combat Hostiles Destroyed 70 | . 6 4 27 5 . . 28 . . . . . . . Guns 62 | . 6 4 27 5 . . 20 . . . . . . . AOE 7 | . . . . . . . 7 . . . . . . . Classes Destroyed 9 | . 6 . 1 . . . 2 . . . . . . . Worker 3 | . 1 . . . . . 2 . . . . . . . Builder 3 | . . . . . . . 3 . . . . . . . Hauler 8 | . 1 . . . . . 5 . 1 . 1 . . . Recycler 9 | . 1 . 4 . . . 3 . . . . 1 . . Operator 5 | . 1 . . . . . 1 . 1 . 1 . 1 . Swarmer 34 | . 3 3 18 2 . . 8 . . . . . . . Grunt 23 | . 3 . 4 2 . . 14 . . . . . . . Sentry 11 | . . . 5 1 . . 5 . . . . . . . Hunter 1 | . . . . . . . 1 . . . . . . . Best Kill Streak 5 | . 3 3 5 2 . . 5 . 1 . 1 1 . . Combat Bots Only 4 | . 3 3 4 2 . . 4 . . . . . . . Max Kills in Single Turn 3 | . 1 1 2 1 . . 3 . 1 . 1 1 1 . Gunslinging 1 | . . . 1 . . . . . . . . . . . Exploded 2 | . . . . . . . 2 . . . . . . . Melee . | . . . . . . . . . . . . . . . Uniques/NPCs Destroyed 1 | . . 1 . . . . . . . . . . . . YI-UF0 (-10/Mines) Combat | -11 -10 -10 -9 -9 -9 -8 -8 -7 -6 -5 -4 -3 -2 -1 -------- Run | Scr Mat Min Mat Min Exi Min Mat Fac Fac Fac Fac Res Res Acc Damage Taken 5580 | . 154 564 1380 558 . 472 1752 . 206 18 . 43 101 332 Core 887 | . 33 181 222 101 . 49 141 . 80 18 . 22 . 40 Absorbed by Shields 188 | . . . . . . . . . . . . . . 188 Redirected to Shielding 92 | . . . . . . . . . . . . . 34 58 Core Remaining (%) 79 | 100 . 14 . . . 7 74 100 90 98 100 98 100 97 Volleys Fired 300 | . 31 7 81 21 . 8 105 . 7 3 6 19 6 6 Largest 2 | . 2 2 2 2 . 2 2 . 1 1 1 1 1 1 Hottest 105 | . 70 70 70 46 . 46 90 . 48 35 35 35 35 105 Shots Fired 507 | . 62 13 162 42 . 16 165 . 7 3 6 19 6 6 Gun 445 | . 62 13 162 42 . 16 145 . . . 2 3 . . Cannon 42 | . . . . . . . . . 7 3 4 16 6 6 Launcher 20 | . . . . . . . 20 . . . . . . . Special . | . . . . . . . . . . . . . . . Kinetic 349 | . 31 7 134 42 . 16 107 . 7 . 2 3 . . Thermal 100 | . 31 6 28 . . . . . . 3 4 16 6 6 Explosive 12 | . . . . . . . 12 . . . . . . . Electromagnetic 46 | . . . . . . . 46 . . . . . . . Robot Hit Streak 19 | . 14 4 19 12 . 4 10 . . . 11 12 . . Robot Miss Streak 8 | . 3 2 5 2 . 4 8 . . . . 1 . . Penetration Max . | . . . . . . . . . . . . . . . Secondary Targets 6 | . . . 4 1 . . 1 . . . . . . . Max Gunslinging Chain 1 | . . . 1 1 . . 1 . . . . . . . Shots Hit Robots 327 | . 47 8 105 29 . 9 109 . 5 . 8 4 3 . Core Hits 168 | . 19 6 43 8 . . 85 . 2 . 1 3 1 . Critical Kills 2 | . . . . . . . 2 . . . . . . . Critical Parts Destroyed 2 | . . . 1 1 . . . . . . . . . . Critical Strikes 10 | . 4 . 2 1 . . 3 . . . . . . . Burn 5 | . 4 . 1 . . . . . . . . . . . Destroy 4 | . . . 1 1 . . 2 . . . . . . . Corrupt 1 | . . . . . . . 1 . . . . . . . Melee Attacks 184 | . . . . . . . 9 17 30 11 27 35 22 33 Impact . | . . . . . . . . . . . . . . . Slashing 184 | . . . . . . . 9 17 30 11 27 35 22 33 Piercing . | . . . . . . . . . . . . . . . Sneak Attacks 7 | . . . . . . . . . 1 . 3 1 2 . Combat Hostiles . | . . . . . . . . . . . . . . . Follow-up Attacks . | . . . . . . . . . . . . . . . Damage Inflicted 6810 | . 591 114 1493 431 . 155 2962 . 251 . 389 138 286 . Guns 4272 | . 590 109 1493 431 . 155 1470 . . . . 24 . . Cannons . | . . . . . . . . . . . . . . . Explosions 1492 | . . . . . . . 1492 . . . . . . . Melee 1040 | . . . . . . . . . 251 . 389 114 286 . Ramming 6 | . 1 5 . . . . . . . . . . . . Kinetic 3318 | . 330 58 1254 431 . 155 1066 . . . . 24 . . Thermal 731 | . 260 51 239 . . . 181 . . . . . . . Explosive 956 | . . . . . . . 956 . . . . . . . Electromagnetic 759 | . . . . . . . 759 . . . . . . . Impact . | . . . . . . . . . . . . . . . Slashing 1040 | . . . . . . . . . 251 . 389 114 286 . Piercing . | . . . . . . . . . . . . . . . Highest Corruption 4 | . . . . . . . 2 1 4 2 . . . . Average Corruption 2 | . . . . . . . 2 1 4 1 . . . . Corruption Purged . | . . . . . . . . . . . . . . . Corruption Blocked . | . . . . . . . . . . . . . . . Effects 23 | . . . . . . . 19 . 1 3 . . . . Message Errors 8 | . . . . . . . 6 . . 2 . . . . Matter Fused 4 | . . . . . . . 3 . 1 . . . . . Heat Flow Errors 1 | . . . . . . . 1 . . . . . . . Energy Discharges 6 | . . . . . . . 6 . . . . . . . Parts Rejected 1 | . . . . . . . 1 . . . . . . . Data Loss (minor) 1 | . . . . . . . . . . 1 . . . . Data Loss (major) 1 | . . . . . . . 1 . . . . . . . Misfires 1 | . . . . . . . 1 . . . . . . . Overload Shots 6 | . . . . . . . . . . . . . . 6 Overflow Damage 249 | . . . . . . . 18 . 59 . 58 . 114 . Projectiles . | . . . . . . . . . . . . . . . Explosions 18 | . . . . . . . 18 . . . . . . . Melee 231 | . . . . . . . . . 59 . 58 . 114 . Knockbacks . | . . . . . . . . . . . . . . . Impact . | . . . . . . . . . . . . . . . Kinetic . | . . . . . . . . . . . . . . . Secondary . | . . . . . . . . . . . . . . . Self-Inflicted Damage 193 | . . 2 . . . . 77 . . . . . . 114 Shots 6 | . . . . . . . 5 . . . . . . 1 Rammed 2 | . 1 1 . . . . . . . . . . . . Targets Rammed 2 | . 1 1 . . . . . . . . . . . . Kicked . | . . . . . . . . . . . . . . . Crushed . | . . . . . . . . . . . . . . . Highest Temperature 294 | . 54 27 45 19 . 51 202 . 6 . . 205 294 192 Average Temperature 64 | . 18 14 13 4 . 24 60 . 2 . . 75 100 60 Received Heat Transfer 1541 | . 39 20 405 204 . 153 711 . . . . . 9 . Effects 1 | . . . . . . . . . . . . . 1 . Energy Bleed 1 | . . . . . . . . . . . . . 1 . Siege Activations . | . . . . . . . . . . . . . . . Robots Corrupted 1 | . . . . . . . 1 . . . . . . . Combat Hostiles 1 | . . . . . . . 1 . . . . . . . Parts Fried 3 | . . . . . . . 3 . . . . . . . Impact Corruptions . | . . . . . . . . . . . . . . . Robots Melted . | . . . . . . . . . . . . . . . Combat Hostiles . | . . . . . . . . . . . . . . . Parts Melted 2 | . . . 2 . . . . . . . . . . . Heat Transferred 2248 | . 1073 148 777 . . . 250 . . . . . . . Parts Sabotaged . | . . . . . . . . . . . . . . . Parts Stolen . | . . . . . . . . . . . . . . . Parts Stripped . | . . . . . . . . . . . . . . . Power Chain Reactions 3 | . . . . . . . 3 . . . . . . . Missiles Intercepted . | . . . . . . . . . . . . . . . Alert | -11 -10 -10 -9 -9 -9 -8 -8 -7 -6 -5 -4 -3 -2 -1 ------- Run | Scr Mat Min Mat Min Exi Min Mat Fac Fac Fac Fac Res Res Acc Peak Influence 585 | . 147 127 585 238 . 77 467 256 274 302 270 335 247 436 Initial 182 | . . 57 . 182 . . 29 161 63 131 147 39 . 36 Average 168 | . 95 44 311 106 . 28 235 170 95 185 184 129 90 223 Maximum Alert Level 2 | . . . 2 1 . . 2 1 1 1 1 1 1 2 Low Security (%) 62 | 100 100 100 27 71 . 100 30 78 95 58 56 79 98 48 Level 1 32 | . . . 28 28 . . 66 21 4 41 43 20 1 37 Level 2 5 | . . . 43 . . . 2 . . . . . . 14 Level 3 . | . . . . . . . . . . . . . . . Level 4 . | . . . . . . . . . . . . . . . Level 5 . | . . . . . . . . . . . . . . . High Security . | . . . . . . . . . . . . . . . Max Security . | . . . . . . . . . . . . . . . Squads Dispatched 28 | . 1 1 4 1 . . 3 1 4 1 2 4 3 3 Investigation 8 | . . 1 . 1 . . 1 1 . 1 . 2 . 1 Extermination 3 | . . . . . . . . . 1 . . 1 1 . Reinforcement 15 | . 1 . 3 . . . 1 . 3 . 2 1 2 2 Assault 2 | . . . 1 . . . 1 . . . . . . . Garrison . | . . . . . . . . . . . . . . . Intercept . | . . . . . . . . . . . . . . . Searches Triggered . | . . . . . . . . . . . . . . . Construction Impeded 1 | . . . . . . . 1 . . . . . . . Haulers Reinforced 2 | . . . . . . . . . . . 2 . . . Active Scanning Responses . | . . . . . . . . . . . . . . . Cargo Convoy Interrupts . | . . . . . . . . . . . . . . . Stealth | -11 -10 -10 -9 -9 -9 -8 -8 -7 -6 -5 -4 -3 -2 -1 --------- Run | Scr Mat Min Mat Min Exi Min Mat Fac Fac Fac Fac Res Res Acc Distress Signals 15 | . 1 . 2 . . . 5 . . . . 1 2 4 Communications Jammed . | . . . . . . . . . . . . . . . Distress Signals . | . . . . . . . . . . . . . . . Times Spotted 229 | . 14 24 51 10 . 3 54 6 19 5 2 18 10 13 Peak Tracking Total 20 | . 5 20 7 4 . 3 6 3 8 5 1 7 9 5 Tactical Retreats 31 | . 1 2 2 3 . . 2 2 4 3 1 2 1 8 Traps | -11 -10 -10 -9 -9 -9 -8 -8 -7 -6 -5 -4 -3 -2 -1 ------- Run | Scr Mat Min Mat Min Exi Min Mat Fac Fac Fac Fac Res Res Acc Traps Triggered 3 | . . . . . . . . 2 . . . 1 . . Indirectly . | . . . . . . . . . . . . . . . Trap Hack Attempts . | . . . . . . . . . . . . . . . Triggered . | . . . . . . . . . . . . . . . Disarmed . | . . . . . . . . . . . . . . . Reprogrammed . | . . . . . . . . . . . . . . . Reused . | . . . . . . . . . . . . . . . Traps Extracted . | . . . . . . . . . . . . . . . Installed . | . . . . . . . . . . . . . . . Triggered . | . . . . . . . . . . . . . . . Machines | -11 -10 -10 -9 -9 -9 -8 -8 -7 -6 -5 -4 -3 -2 -1 ---------- Run | Scr Mat Min Mat Min Exi Min Mat Fac Fac Fac Fac Res Res Acc Machines Disabled 11 | . . . 1 1 . . 6 . 1 . . . . 2 Max in Single Turn 1 | . . . 1 1 . . 1 . 1 . . . . 1 Garrison Access 11 | . . . . . . . 1 . . 1 1 2 3 3 Energy Cycler 1 | . . . . . . . . . . . . . . 1 Machines Sabotaged . | . . . . . . . . . . . . . . . Garrisons Compromised . | . . . . . . . . . . . . . . . Overloaded Fab Kills . | . . . . . . . . . . . . . . . Hacking | -11 -10 -10 -9 -9 -9 -8 -8 -7 -6 -5 -4 -3 -2 -1 --------- Run | Scr Mat Min Mat Min Exi Min Mat Fac Fac Fac Fac Res Res Acc Machines Accessed 85 | . 5 1 2 2 3 . 9 11 7 7 8 12 7 11 Terminals 58 | . 5 . 1 2 . . 7 8 7 5 5 7 3 8 Fabricators 3 | . . . . . . . . 1 . 1 . 1 . . Repair Stations . | . . . . . . . . . . . . . . . Recycling Units 2 | . . . . . . . . 1 . . 1 . . . Scanalyzers 6 | . . . 1 . . . 1 . . . 1 2 1 . Garrison Access 12 | . . . . . . . 1 1 . 1 1 2 3 3 Total Hacks 272 | . 17 1 3 6 6 . 23 43 32 20 23 52 16 30 Successful 162 | . 10 1 2 3 6 . 15 16 14 11 16 41 13 14 Failed 110 | . 7 . 1 3 . . 8 27 18 9 7 11 3 16 Catastrophic 19 | . 1 . 1 1 . . 1 5 1 1 1 3 1 3 Database Lockouts . | . . . . . . . . . . . . . . . Manual 150 | . 11 . . 3 1 . 9 24 27 11 12 28 9 15 Terminals 217 | . 17 . 1 6 . . 19 32 32 17 13 44 10 26 Fabricators 10 | . . . . . . . . 5 . 2 . 3 . . Repair Stations . | . . . . . . . . . . . . . . . Recycling Units 8 | . . . . . . . . 3 . . 5 . . . Scanalyzers 11 | . . . 2 . . . 2 . . . 3 3 1 . Garrison Access 19 | . . . . . . . 2 3 . 1 2 2 5 4 Terminal Hacks 100 | . 8 1 . 3 6 . 9 11 8 6 5 26 6 11 Record 8 | . . . . 1 6 . . 1 . . . . . . Part Schematic 8 | . 1 . . . . . 1 1 1 . . 3 1 . Robot Schematic 1 | . . . . . . . . . . . . 1 . . Robot Analysis 1 | . . . . . . . . . . 1 . . . . Open Door 2 | . . 1 . . . . . . . . . . . 1 Level Access Points 7 | . . . . . . . . 1 1 1 1 1 1 1 Branch Access Points 4 | . 1 . . . . . 1 . 1 . . . . 1 Terminal Index 7 | . 1 . . . . . . 1 . 1 1 1 1 1 Fabricator Index 2 | . . . . . . . . 1 . . . 1 . . Scanalyzer Index 2 | . . . . . . . 1 . . . . 1 . . Garrison Index 1 | . . . . . . . . . . . . 1 . . Alert Level 8 | . . . . . . . 2 1 . 1 . 3 . 1 Unreport Threat 5 | . . . . . . . 1 1 . . . 1 . 2 Locate Traps 12 | . 1 . . . . . 2 2 1 1 . 3 1 1 Security Status 1 | . . . . . . . . . . . . 1 . . Patrol Status 1 | . . . . 1 . . . . . . . . . . Recall Investigation 2 | . . . . . . . . . . . . 1 . 1 Recall Reinforcements 2 | . 1 . . . . . . . . . . . 1 . Recall Assault 1 | . 1 . . . . . . . . . . . . . Hauler Manifests 1 | . . . . . . . . 1 . . . . . . Registered Components 2 | . . . . . . . . . . . . 2 . . Registered Prototypes 2 | . . . . . . . . . . . 1 1 . . Zone Layout 20 | . 2 . . 1 . . 1 1 4 1 2 5 1 2 Fabricator Hacks 6 | . . . . . . . . 2 . 1 . 3 . . Network Status 2 | . . . . . . . . . . 1 . 1 . . Load Schematic 2 | . . . . . . . . 1 . . . 1 . . Build 2 | . . . . . . . . 1 . . . 1 . . Repair Station Hacks . | . . . . . . . . . . . . . . . Recycling Unit Hacks 3 | . . . . . . . . 1 . . 2 . . . Report Inventory 1 | . . . . . . . . 1 . . . . . . Retrieve Matter 1 | . . . . . . . . . . . 1 . . . Retrieve Components 1 | . . . . . . . . . . . 1 . . . Scanalyzer 11 | . . . 2 . . . 2 . . . 3 3 1 . Insert Component 6 | . . . 1 . . . 1 . . . 1 2 1 . Analyze 5 | . . . 1 . . . 1 . . . 2 1 . . Garrison Access Hacks 10 | . . . . . . . . . . 1 1 2 3 3 Seal Access 10 | . . . . . . . . . . 1 1 2 3 3 Unauthorized Hacks 32 | . 2 . . . . . 4 2 6 3 5 7 3 . Terminals 27 | . 2 . . . . . 4 1 6 3 2 7 2 . Track 9 | . . . . . . . 1 . 3 1 . 4 . . Assimilate 3 | . . . . . . . . . . . 1 1 1 . Botnet 10 | . 1 . . . . . 2 1 1 1 1 2 1 . Disrupt 3 | . . . . . . . . . 2 1 . . . . Operators 2 | . 1 . . . . . 1 . . . . . . . Fabricators 1 | . . . . . . . . 1 . . . . . . Prioritize 1 | . . . . . . . . 1 . . . . . . Repair Stations . | . . . . . . . . . . . . . . . Recycling Units 3 | . . . . . . . . . . . 3 . . . Reject 1 | . . . . . . . . . . . 1 . . . Recyclers 1 | . . . . . . . . . . . 1 . . . Mask 1 | . . . . . . . . . . . 1 . . . Scanalyzers . | . . . . . . . . . . . . . . . Garrison Access 1 | . . . . . . . . . . . . . 1 . Watchers 1 | . . . . . . . . . . . . . 1 . Data Cores Recovered 1 | . . . . . . . . . 1 . . . . . Used . | . . . . . . . . . . . . . . . Hacking Detections 63 | . 5 . 1 2 . . 9 10 6 5 5 8 3 9 Full Trace Events 7 | . . . . 1 . . 1 1 . 1 . 2 . 1 Feedback Events 1 | . . . . . . . . . . 1 . . . . Corruption 1 | . . . . . . . . . . 1 . . . . Feedback Blocked . | . . . . . . . . . . . . . . . Robot Schematics Acquired 1 | . . . . . . . . . . . . 1 . . Robots Built . | . . . . . . . . . . . . . . . Authchips . | . . . . . . . . . . . . . . . Time . | . . . . . . . . . . . . . . . Total Robot Build Rating . | . . . . . . . . . . . . . . . Part Schematics Acquired 12 | . 1 . 1 . . . 2 1 1 . 1 4 1 . Parts Built 2 | . . . . . . . . 1 . . . 1 . . Authchips 1 | . . . . . . . . 1 . . . . . . Time 83 | . . . . . . . . 36 . . . 47 . . Total Part Build Rating 8 | . . . . . . . . 3 . . . 5 . . Parts Repaired . | . . . . . . . . . . . . . . . Time . | . . . . . . . . . . . . . . . Parts Recycled . | . . . . . . . . . . . . . . . Recycled Matter . | . . . . . . . . . . . . . . . Retrieved Matter . | . . . . . . . . . . . . . . . Retrieved Components 1 | . . . . . . . . . . . 1 . . . Parts Scanalyzed 4 | . . . 1 . . . 1 . . . 1 1 . . Part Schematics Acquired 4 | . . . 1 . . . 1 . . . 1 1 . . Parts Damaged 1 | . . . . . . . 1 . . . . . . . Bothacking | -11 -10 -10 -9 -9 -9 -8 -8 -7 -6 -5 -4 -3 -2 -1 ------------ Run | Scr Mat Min Mat Min Exi Min Mat Fac Fac Fac Fac Res Res Acc Used RIF Installer . | . . . . . . . . . . . . . . . Robots Hacked . | . . . . . . . . . . . . . . . Non-combat . | . . . . . . . . . . . . . . . Combat . | . . . . . . . . . . . . . . . Robot Hacks Applied . | . . . . . . . . . . . . . . . Relay Couplers Released 2 | . . . . . . . 2 . . . . . . . Machine Destruction 2 | . . . . . . . 2 . . . . . . . Fabnet Peak Effective % . | . . . . . . . . . . . . . . . Robots Rewired . | . . . . . . . . . . . . . . . Allies Hacked . | . . . . . . . . . . . . . . . Hacks Repelled . | . . . . . . . . . . . . . . . Allies | -11 -10 -10 -9 -9 -9 -8 -8 -7 -6 -5 -4 -3 -2 -1 -------- Run | Scr Mat Min Mat Min Exi Min Mat Fac Fac Fac Fac Res Res Acc Total Allies 4 | . . . . 1 . . . . . . 1 1 1 . Largest Group 1 | . . . . 1 . . . . . . . 1 1 . Highest-Rated Group 45 | . . . . 31 . . . . . . . 10 45 . Highest-Rated Ally 45 | . . . . 31 . . . . . . . 10 45 . Total Orders . | . . . . . . . . . . . . . . . Ally Attacks 22 | . . . . 11 . 7 . . . . . . . 4 Total Damage 643 | . . . . 84 . 365 . . . . . . . 194 Kills 7 | . . . . 2 . 3 . . . . . . . 2 Allies Corrupted 1 | . . . . . . . . . . . . . . 1 Allies Melted . | . . . . . . . . . . . . . . . Turrets Deployed 3 | . . . . . . 1 1 . . . . . . 1 Intel | -11 -10 -10 -9 -9 -9 -8 -8 -7 -6 -5 -4 -3 -2 -1 ------- Run | Scr Mat Min Mat Min Exi Min Mat Fac Fac Fac Fac Res Res Acc Robot Analysis Total 1 | . . . . . . . . . . 1 . . . . Derelict Logs Recovered 1 | . . . . 1 . . . . . . . . . . Drone Launches . | . . . . . . . . . . . . . . . Drone Recoveries . | . . . . . . . . . . . . . . . Exploration | -11 -10 -10 -9 -9 -9 -8 -8 -7 -6 -5 -4 -3 -2 -1 ------------- Run | Scr Mat Min Mat Min Exi Min Mat Fac Fac Fac Fac Res Res Acc Turns Passed 10231 | 90 677 552 861 1147 534 171 2759 348 711 221 466 817 425 452 Spaces Moved 12169 | 63 551 354 389 645 322 91 1264 965 1375 634 1002 1933 1198 1383 Core 26 | 21 3 . 2 . . . . . . . . . . . Treads 2474 | 30 6 . 119 645 322 91 1261 . . . . . . . Legs . | . . . . . . . . . . . . . . . Wheels 1176 | 12 542 354 268 . . . . . . . . . . . Hover . | . . . . . . . . . . . . . . . Flight 8493 | . . . . . . . 3 965 1375 634 1002 1933 1198 1383 Fastest Speed 23 | 50 95 110 110 160 160 160 97 27 27 28 26 23 25 25 Average Speed 62 | 121 98 110 142 160 161 160 174 27 27 28 27 23 25 25 Slowest Speed 500 | 200 250 110 500 160 240 160 330 27 101 28 101 26 25 25 Overloaded Moves . | . . . . . . . . . . . . . . . Propulsion Burnouts . | . . . . . . . . . . . . . . . Robots Hopped 43 | . . . . . . . 1 7 9 . . 24 . 2 Cave-ins Triggered . | . . . . . . . . . . . . . . . Exploration Rate (%) 46 | 4 86 58 40 99 71 23 81 31 26 15 33 53 32 45 Regions Visited 14 Branch Regions 4 Pre-discovered Areas 1 | . . . . . 1 . . . . . . . . . Known Exits Taken 7 | . 1 . . . . . . 1 1 1 1 1 1 . Unknown Exits Taken 7 | 1 . 1 1 1 1 1 1 . . . . . . . Scrap Searched 4 | . . 1 . 2 . 1 . . . . . . . . Spaces Dug 183 | . . . . . . . 17 15 23 14 23 33 21 37 Terrain Destroyed 280 | . . . . . . . 73 15 25 14 25 35 22 71 Melee 156 | . . . . . . . 8 15 21 11 21 29 19 32 Projectile 26 | . . . . . . . . . 4 3 4 6 3 6 AOE 98 | . . . . . . . 65 . . . . . . 33 Terrain Rammed . | . . . . . . . . . . . . . . . Walls Destroyed . | . . . . . . . . . . . . . . . Machines Disabled . | . . . . . . . . . . . . . . . Actions | -11 -10 -10 -9 -9 -9 -8 -8 -7 -6 -5 -4 -3 -2 -1 --------- Run | Scr Mat Min Mat Min Exi Min Mat Fac Fac Fac Fac Res Res Acc Total 14019 | 73 622 505 538 720 337 102 1644 1030 1666 663 1164 2213 1295 1447 Wait 1037 | . 19 134 35 35 . . 158 26 243 6 100 210 51 20 Move 12072 | 62 550 353 388 644 321 90 1261 951 1356 633 1001 1887 1197 1378 Hop 39 | . . . . . . . 1 6 9 . . 21 . 2 Pick Up 102 | 4 11 5 13 7 3 1 22 9 4 3 4 8 6 2 Fast Attach 51 | 6 1 . 7 1 4 . 13 2 2 . 5 8 2 . Attach 66 | . 1 2 8 3 1 1 22 6 5 5 6 2 2 2 Detach 16 | . . . 1 . . . 3 2 3 2 5 . . . Swap 51 | 1 3 . 3 5 1 . 18 4 3 . 3 5 3 2 Drop 95 | . 5 3 2 4 7 2 32 7 4 . 7 14 6 2 Fire 300 | . 31 7 81 21 . 8 105 . 7 3 6 19 6 6 Melee 184 | . . . . . . . 9 17 30 11 27 35 22 33 Ram 2 | . 1 1 . . . . . . . . . . . . Kick . | . . . . . . . . . . . . . . . Crush . | . . . . . . . . . . . . . . . Escape Stasis 4 | . . . . . . . . . . . . 4 . . Rewire . | . . . . . . . . . . . . . . . Trap . | . . . . . . . . . . . . . . . Miscellaneous . | . . . . . . . . . . . . . . . Route ------- -11/Scrapyard -10/Materials (discovered 5 exits: *Mat x3 / *Min x2) -10/Mines -9/Materials (discovered 2 exits: *Mat / *Min) -9/Mines (discovered 3 exits: *Mat x2 / *Exi) -9/Exiles -8/Mines -8/Materials (discovered 3 exits: *Fac x3) -7/Factory (discovered 6 exits: *Fac x4 / Sto / *Low) -6/Factory (discovered 8 exits: *Fac x4 / *Low x2 / Ext x2) -5/Factory (discovered 5 exits: *Fac x4 / [*Upp]) -4/Factory (discovered 4 exits: *Res x4) -3/Research (discovered 4 exits: *Res x3 / [*Arm]) -2/Research (discovered 3 exits: *Acc x3) -1/Access (discovered 2 exits: *Sur / Com) To Epsilon Eridani History --------- Turn | Location | Event 35 | -11/Scrapyard | Discovered new exit (range 15) 91 | -11/Scrapyard | Entered Materials 162 | -10/Materials | Discovered new exit (range 7) 179 | -10/Materials | Identified exit to Mines 308 | -10/Materials | Build established: Mutant 319 | -10/Materials | Discovered new exit (range 16) 429 | -10/Materials | Discovered new exit (range 9) 633 | -10/Materials | Discovered new exit (range 10) 768 | -10/Materials | Entered Mines 777 | -10/Mines | Met a Derelict shopkeep closing up shop 1033 | -10/Mines | Destroyed YI-UF0 1090 | -10/Mines | Discovered new exit (range 11) 1250 | -10/Mines | Assembled infested the area 1268 | -10/Mines | Core integrity fell below 50% 1280 | -10/Mines | Core integrity fell below 20% 1307 | -10/Mines | Lost 3 parts (1p1n1w) 1320 | -10/Mines | Entered Materials 1320 | -9/Materials | Evolved 2 slots: Propulsion x1, Utility x1 1746 | -9/Materials | Build established: Scavenger-Mutant 1919 | -9/Materials | Discovered new exit (range 16) 2049 | -9/Materials | Discovered new exit (range 16) 2120 | -9/Materials | First assault squad dispatched 2157 | -9/Materials | Lost 4 parts (1p1n1u1w) 2176 | -9/Materials | Core integrity fell below 50% 2181 | -9/Materials | Entered Mines 2198 | -9/Mines | Found a damaged Exp. Sensor Array with a note attached 2202 | -9/Mines | Found Prototype Device 2231 | -9/Mines | Identified Exp. Sensor Array 2255 | -9/Mines | Found a hidden stash of uninstalled traps 2550 | -9/Mines | Discovered new exit (range 13) 2628 | -9/Mines | A weapon hastily lodged in a ceiling crevice suddenly fell to the ground 2641 | -9/Mines | Discovered new exit (range 12) 2715 | -9/Mines | Lost 3 parts (2n1u) 2859 | -9/Mines | Received a Mining Laser from a helpful Derelict 2895 | -9/Mines | Core integrity fell below 20% 3322 | -9/Mines | Deemed a non-threat by the Exiles lab entrance 3322 | -9/Mines | Discovered new exit (range 5) 3328 | -9/Mines | Entered Exiles 3367 | -9/Exiles | Met 8R-AWN 3394 | -9/Exiles | Met EX-HEX 3485 | -9/Exiles | Met EX-DEC 3540 | -9/Exiles | Met EX-BIN 3567 | -9/Exiles | Aligned with FarCom system 3568 | -9/Exiles | Given EX-Vault access code 3632 | -9/Exiles | Opened EX-Vault 3642 | -9/Exiles | Found Prototype Energy Cannon 3642 | -9/Exiles | Identified YOLO Cannon 3653 | -9/Exiles | Found Prototype Energy Cannon 3653 | -9/Exiles | Identified Firepult 3676 | -9/Exiles | Found Deploy-a-Sentry 3680 | -9/Exiles | Found Deploy-a-Sentry 3685 | -9/Exiles | Found Deploy-a-Sentry 3719 | -9/Exiles | Warned to stay clear of 0b10 Research branches 3782 | -9/Exiles | Learned location of Zion (-6) 3844 | -9/Exiles | Discovered new exit (range 14) 3862 | -9/Exiles | Left Exiles lab with Deploy-a-Sentry 3862 | -9/Exiles | Entered Mines 3965 | -8/Mines | DAS Turret deployed 4013 | -8/Mines | Discovered new exit (range 15) 4033 | -8/Mines | Entered Materials 4033 | -8/Materials | Evolved 2 slots: Propulsion x1, Utility x1 4678 | -8/Materials | Lost 3 parts (1p1n1w) 4750 | -8/Materials | Discovered new exit (range 16) 5166 | -8/Materials | Lost 6 parts (2n2u2w) 5565 | -8/Materials | DAS Turret deployed 5711 | -8/Materials | Build established: Mutant 5856 | -8/Materials | Discovered new exit (range 11) 6529 | -8/Materials | Discovered new exit (range 16) 6792 | -8/Materials | Entered Factory 6792 | -7/Factory | Evolved 2 slots: Utility x2 6793 | -7/Factory | Identified exit to Storage 6810 | -7/Factory | Discovered new exit (range 11) 6838 | -7/Factory | Identified exit to Lower Caves 6955 | -7/Factory | Identified exit to Factory 6978 | -7/Factory | Fabricated Machine Analyzer (x1) 7140 | -7/Factory | Entered another Factory area 7140 | -6/Factory | Evolved 2 slots: Propulsion x1, Utility x1 7159 | -6/Factory | Identified exit to Lower Caves 7159 | -6/Factory | Identified exit to Extension 7364 | -6/Factory | Build established: Hacker-Scout 7476 | -6/Factory | Identified exit to Factory 7851 | -6/Factory | Entered another Factory area 7851 | -5/Factory | Evolved 2 slots: Propulsion x1, Utility x1 7984 | -5/Factory | Identified exit to Factory 8035 | -5/Factory | Discovered new exit (range 7) 8072 | -5/Factory | Entered another Factory area 8072 | -4/Factory | Evolved 2 slots: Propulsion x1, Utility x1 8092 | -4/Factory | Identified exit to Research 8538 | -4/Factory | Entered Research 8538 | -3/Research | Evolved 2 slots: Power x1, Propulsion x1 8584 | -3/Research | Identified exit to Research 8598 | -3/Research | Spotted B-86 Titan 8617 | -3/Research | Spotted B-86 Titan 8828 | -3/Research | Build established: Wizard-Sprinter 8920 | -3/Research | Fabricated Imp. Hacking Suite (x1) 8925 | -3/Research | Discovered new exit (range 13) 9129 | -3/Research | Spotted B-86 Titan 9355 | -3/Research | Entered another Research area 9355 | -2/Research | Evolved 2 slots: Utility x2 9440 | -2/Research | Build established: Hacker-Scout 9495 | -2/Research | Identified exit to Access 9611 | -2/Research | Spotted B-90 Cyclops 9690 | -2/Research | Spotted B-90 Cyclops 9780 | -2/Research | Entered Access 9780 | -1/Access | Evolved 2 slots: Utility x2 9855 | -1/Access | Spotted B-99 Colossus 9924 | -1/Access | DAS Turret deployed 9999 | -1/Access | Spotted B-99 Colossus 10003 | -1/Access | Identified exit to Command 10172 | -1/Access | Identified exit to Surface 10180 | -1/Access | Energy Cycler disabled 10232 | *** | Escaped! Last Messages --------------- Purged threat record, alert level lowered. >>Alert(Purge) Purged threat record, alert level lowered. 10164_ ALERT: Suspicious activity at Terminal A012. Dispatching Investigation squad. 10172_ Connecting with Terminal... >>Access(Main) Found 1 level access point to Surface: (102,64) Map updated. >>Recall(Investigation) Establishing remote squad link... Recalled investigation squad YUVOQB3VV9. 10175_ Connecting with Terminal... 10180_ ALERT: Power surge detected, dispatching additional patrols. 10180_ Energy Cycler explodes. 10223_ ALERT: Suspicious intruders detected, dispatching Cutter reinforcements to area. 10230_ Connecting with Terminal... 10231_ The Access Shell folds into the floor. Map ----- +----------------------------------------------------+ | ???????????????#### ### # ##???????? | | ???????????????#### ### # ########## | | ?????????????????## ?## # """""" ########## | | ?????????????????## ?## # """""" #### | | ?????????????????????## # """""" + + | | ?????????????????????## # """""" ####"" | | ?????????????????????## + """""" ####"" | | ?????????????????????????? # ? ####"" | | ?????????????????????????? # = ####T | | ?????????????????????????? #################"" "" | | ?????????????????????????? ##### ########"" "" | | ???????????????????????????????## ??##"" | | ???????????????????????????????## //??## | | ???????????????????????????????## "" // ?## [ | | ?????????????????????BB????BB??##""" // ?## | | ?????????????????????BB????BB??##"R ##+##### | | ???????????????????????????????##""" ## ##### | | ???????????????????????????????##""" + | | ???????????????????????????????## # | | ??????????????????##"????????"### #+###### | | ??????????????????##""""""""""### # | | ??????????????????## ### # | | ??????????????????## ############# | | ??????????????????## ### #### * | | ??????????????????## "" ### ###"####### | | ??????????????????## "@ ### ## | | ??????????????????## ### ## ^ | | ??????????????????## ### ] ## | | ?????????????????### ### ## | | ?????????????????### ### ## " | | ?????????????????## ## ## " | | ?????????????????###"" ### ## """ | | ?????????????????###"" ### ## """ | | ??????????????????##"" ### ## " | | ??????????????????##T ### ## " | | ??????????????????##"" ###! ## | | ??????????????????##"" ### ## | | ??????????????????##"" #####+######+####### | | ?????????????? | | ???????????? | | ???????????? ######################+######## | | ???????????? #################### ##### | | ???????????????????????????????????????????? | | ????????????????????????????????????????????? | | ????????????????????????????????????????????? | | ????????????????????????????????????????????? !! | | ????????????????????????????????????????????? ] | | ????????????????????????????????????????????? #### | | ????????????????????????????????????????????? # | | ?????????????????????????????????????????????????? | +----------------------------------------------------+ Best States ------------- Heat Dissipation 52 Coolant Potential 100 Energy Generation 27 Energy Capacity 360 Matter Stores 354 Matter Capacity 450 Sight Range 16 Terrain Scan Range 16 Terrain Scan Density 10 Additional Mass Support 12 Armor Coverage 375 Propulsion Shielding 66 Utility Shielding 66 Evasion (%) 65 Targeting Accuracy 6 Recoil Reduction 4 Offensive Hacking 44 Defensive Hacking 20 Authchip Count 1 Item Schematics ----------------- Lrg. Storage Unit | -10/Materials | Hacked Hacking Suite | -9/Materials | Scanalyzed Exp. Sensor Array | -8/Materials | Scanalyzed Machine Analyzer | -8/Materials | Hacked System Shield | -7/Factory | Hacked Imp. Hacking Suite | -6/Factory | Hacked Imp. Energy Well | -4/Factory | Scanalyzed Lgt. Quantum Reactor | -3/Research | Hacked Neutron Missile Launcher | -3/Research | Scanalyzed Exp. Hacking Suite | -3/Research | Hacked Plasma Lance | -3/Research | Hacked Exp. Heat Sink | -2/Research | Hacked Robot Schematics ------------------ X-82 Rainmaker | -3/Research | Hacked Fabricated ------------ Machine Analyzer | x1 | -7/Factory | Authchip Imp. Hacking Suite | x1 | -3/Research Alien Tech Used ----------------- None Achievements -------------- None Challenges ------------ None Game ------ Seed RocketPrecisionCoupler Manual? 0 Play Time 02:59:27 Cumulative 181.4 hours Start 2022.03.24 @ 17:29:57 End 2022.03.24 @ 20:34:15 Sessions 1 Manual Loads 0 Difficulty Rogue Special Mode None Game No. 53 Rogue 36 Adventurer 17 Explorer 0 Win Type 0 Total 10 Types 7/0/2/1/0/0/0/0/0 Lore% 66 Gallery% 66 Achievement% 62 Wizard Run 0 Options --------- ASCII 0 Keyboard 0 Movement Arrows Keybinds 0 Fullscreen 1 Font 28/Dina Map View 72x54 Tactical HUD 1 Map Filters NONE Filters NONE Steam 1 RUN: 3729574b-6368-454f-872a-23b4ad4f8842